[Event "*** MasterClass Titled Tuesday Blitz"]
[Site "Chess.com"]
[Date "2017.12.12"]
[Round "4"]
[White "tteshan"]
[Black "visa"]
[Result "1-0"]
[WhiteElo "2037"]
[BlackElo "2093"]
[TimeControl "180+2"]
[EndTime "13:50:47 PST"]
[Termination "tteshan won by resignation"]

1. d4 {[%clk 0:03:01.2]} 1... e6 {[%clk 0:02:58.5]} 2. c4 {[%clk 0:03:02.4]}
2... b6 {[%clk 0:02:58.5]} 3. Nc3 {[%clk 0:03:03]} 3... Bb7 {[%clk 0:02:58.4]}
4. e3 {[%clk 0:03:01.7]} 4... f5 {[%clk 0:02:58.4]} 5. Nf3 {[%clk 0:02:57.5]}
5... Nf6 {[%clk 0:02:58.7]} 6. Bd3 {[%clk 0:02:57.2]} 6... Be7 {[%clk
0:02:58.5]} 7. Bd2 {[%clk 0:02:56.7]} 7... O-O {[%clk 0:02:58.9]} 8. Qe2 {[%clk
0:02:54.8]} 8... Ne4 {[%clk 0:02:59.5]} 9. O-O {[%clk 0:02:41.7]} 9... Bf6
{[%clk 0:02:56.6]} 10. Bxe4 {[%clk 0:02:41.2]} 10... fxe4 {[%clk 0:02:52.8]} 11.
Ne1 {[%clk 0:02:42.7]} 11... c5 {[%clk 0:02:45.1]} 12. dxc5 {[%clk 0:02:33.9]}
12... bxc5 {[%clk 0:02:45.1]} 13. Qg4 {[%clk 0:02:29.5]} 13... Nc6 {[%clk
0:02:21.9]} 14. Nxe4 {[%clk 0:02:25.3]} 14... Bxb2 {[%clk 0:02:17]} 15. Rb1
{[%clk 0:02:23.3]} 15... Ne5 {[%clk 0:02:18]} 16. Qe2 {[%clk 0:02:08.2]} 16...
Bxe4 {[%clk 0:01:55.6]} 17. Rxb2 {[%clk 0:02:09.2]} 17... Qh4 {[%clk 0:01:26.4]}
18. f3 {[%clk 0:02:02.9]} 18... Bg6 {[%clk 0:01:19.3]} 19. Bc3 {[%clk
0:01:56.9]} 19... Qxc4 {[%clk 0:01:12.7]} 20. Bxe5 {[%clk 0:01:51.5]} 20... Qd5
{[%clk 0:01:04.1]} 21. Bc3 {[%clk 0:01:48.2]} 21... c4 {[%clk 0:01:05.2]} 22.
Qd2 {[%clk 0:01:44.5]} 22... Qxd2 {[%clk 0:00:52.9]} 23. Rxd2 {[%clk 0:01:43.9]}
23... d5 {[%clk 0:00:54.8]} 24. Nc2 {[%clk 0:01:41.8]} 24... Bd3 {[%clk
0:00:54.8]} 25. Rc1 {[%clk 0:01:38.1]} 25... Rab8 {[%clk 0:00:55.8]} 26. Nd4
{[%clk 0:01:36]} 26... Kf7 {[%clk 0:00:53.2]} 27. f4 {[%clk 0:01:36.3]} 27...
Rb6 {[%clk 0:00:47.2]} 28. Kf2 {[%clk 0:01:31.3]} 28... Rfb8 {[%clk 0:00:48]}
29. Kf3 {[%clk 0:01:27.4]} 29... Rb1 {[%clk 0:00:48.6]} 30. Rxb1 {[%clk
0:01:27.6]} 30... Rxb1 {[%clk 0:00:49.5]} 31. Rb2 {[%clk 0:01:25.5]} 31... Rf1+
{[%clk 0:00:49.2]} 32. Kg3 {[%clk 0:01:24.7]} 32... Be4 {[%clk 0:00:46.3]} 33.
Rb7+ {[%clk 0:01:20.3]} 33... Kg6 {[%clk 0:00:47.1]} 34. Nxe6 {[%clk 0:01:13.8]}
34... Rg1 {[%clk 0:00:39.1]} 35. Rb2 {[%clk 0:01:04.7]} 35... h5 {[%clk
0:00:33.7]} 36. h4 {[%clk 0:01:02]} 36... Re1 {[%clk 0:00:30.2]} 37. Bxe1 {[%clk
0:00:56.6]} 1-0

[Event "*** MasterClass Titled Tuesday Blitz"]
[Site "Chess.com"]
[Date "2017.12.12"]
[Round "4"]
[White "sandager"]
[Black "inegrepus"]
[Result "0-1"]
[WhiteElo "1964"]
[BlackElo "2045"]
[TimeControl "180+2"]
[EndTime "13:50:49 PST"]
[Termination "inegrepus won by resignation"]

1. e4 {[%clk 0:02:59.7]} 1... c5 {[%clk 0:02:56.8]} 2. Nf3 {[%clk 0:03:00]} 2...
Nc6 {[%clk 0:02:57.2]} 3. d4 {[%clk 0:03:00.9]} 3... cxd4 {[%clk 0:02:58.1]} 4.
Nxd4 {[%clk 0:03:02.3]} 4... e5 {[%clk 0:02:59.3]} 5. Nb5 {[%clk 0:03:00.9]}
5... d6 {[%clk 0:03:00.6]} 6. c4 {[%clk 0:03:00.5]} 6... f5 {[%clk 0:02:54.9]}
7. exf5 {[%clk 0:02:59.1]} 7... Bxf5 {[%clk 0:02:54.4]} 8. Bd3 {[%clk
0:02:59.5]} 8... Be6 {[%clk 0:02:55.4]} 9. O-O {[%clk 0:02:59.3]} 9... Nf6
{[%clk 0:02:54.9]} 10. Bg5 {[%clk 0:02:57.2]} 10... Be7 {[%clk 0:02:53.9]} 11.
Bxf6 {[%clk 0:02:48.1]} 11... gxf6 {[%clk 0:02:54.9]} 12. Qc2 {[%clk 0:02:15.9]}
12... a6 {[%clk 0:02:53.2]} 13. N5c3 {[%clk 0:02:03.4]} 13... Nd4 {[%clk
0:02:54.2]} 14. Qd1 {[%clk 0:02:00.4]} 14... O-O {[%clk 0:02:47.3]} 15. Nd2
{[%clk 0:02:00.4]} 15... f5 {[%clk 0:02:44.2]} 16. f4 {[%clk 0:01:55.4]} 16...
e4 {[%clk 0:02:40.1]} 17. Be2 {[%clk 0:01:55.9]} 17... Bf6 {[%clk 0:02:33.1]}
18. Re1 {[%clk 0:01:49.3]} 18... Rc8 {[%clk 0:02:32.8]} 19. Nf1 {[%clk
0:01:40.7]} 19... Qb6 {[%clk 0:02:26.3]} 20. Kh1 {[%clk 0:01:39.9]} 20... Qxb2
{[%clk 0:02:19.8]} 21. Na4 {[%clk 0:01:33]} 21... Qa3 {[%clk 0:02:10.7]} 22. Nb6
{[%clk 0:01:26]} 22... Rc6 {[%clk 0:02:05]} 23. Nd5 {[%clk 0:01:23.7]} 23...
Bxd5 {[%clk 0:01:52.6]} 24. cxd5 {[%clk 0:01:23.4]} 24... Rc2 {[%clk 0:01:51.2]}
25. Bh5 {[%clk 0:01:22]} 25... Kh8 {[%clk 0:01:27.1]} 26. Ne3 {[%clk 0:01:21.7]}
26... Rxa2 {[%clk 0:01:22.8]} 27. Rc1 {[%clk 0:01:19]} 27... Rg8 {[%clk
0:01:15.1]} 28. Rc7 {[%clk 0:01:17.9]} 28... Nb5 {[%clk 0:00:59.3]} 29. Rf7
{[%clk 0:01:16.2]} 29... Bd4 {[%clk 0:00:55.5]} 30. Nxf5 {[%clk 0:00:54.6]}
30... Raxg2 {[%clk 0:00:39.2]} 31. Nxd4 {[%clk 0:00:50.8]} 31... Rxh2+ {[%clk
0:00:39.2]} 0-1

[Event "*** MasterClass Titled Tuesday Blitz"]
[Site "Chess.com"]
[Date "2017.12.12"]
[Round "4"]
[White "benhal"]
[Black "NateSolon"]
[Result "1-0"]
[WhiteElo "2283"]
[BlackElo "2353"]
[TimeControl "180+2"]
[EndTime "13:50:55 PST"]
[Termination "benhal won by resignation"]

1. e4 {[%clk 0:03:01.9]} 1... c5 {[%clk 0:02:59.2]} 2. Nf3 {[%clk 0:03:01.8]}
2... d6 {[%clk 0:03:00.1]} 3. d4 {[%clk 0:03:02.3]} 3... Nf6 {[%clk 0:03:01]} 4.
Nc3 {[%clk 0:03:02.2]} 4... cxd4 {[%clk 0:03:01.7]} 5. Nxd4 {[%clk 0:03:02.6]}
5... Nc6 {[%clk 0:03:02.7]} 6. Bg5 {[%clk 0:03:01.4]} 6... Bd7 {[%clk
0:03:02.1]} 7. f3 {[%clk 0:03:00]} 7... e6 {[%clk 0:02:53.8]} 8. Qd2 {[%clk
0:02:40.7]} 8... a6 {[%clk 0:02:50.5]} 9. O-O-O {[%clk 0:02:34.9]} 9... Be7
{[%clk 0:02:43]} 10. h4 {[%clk 0:02:26.9]} 10... h6 {[%clk 0:02:39.9]} 11. Be3
{[%clk 0:02:26.1]} 11... Qc7 {[%clk 0:02:09.1]} 12. g4 {[%clk 0:02:18.3]} 12...
Ne5 {[%clk 0:02:08.7]} 13. Rg1 {[%clk 0:02:15.6]} 13... Rc8 {[%clk 0:01:46.5]}
14. g5 {[%clk 0:02:13.3]} 14... hxg5 {[%clk 0:01:48.4]} 15. hxg5 {[%clk
0:02:14.1]} 15... Nh5 {[%clk 0:01:49.8]} 16. f4 {[%clk 0:02:11.1]} 16... Nc4
{[%clk 0:01:50.9]} 17. Bxc4 {[%clk 0:02:11.2]} 17... Qxc4 {[%clk 0:01:52.8]} 18.
f5 {[%clk 0:02:08.5]} 18... g6 {[%clk 0:01:24]} 19. fxe6 {[%clk 0:01:24]} 19...
fxe6 {[%clk 0:01:24.6]} 20. e5 {[%clk 0:01:22.9]} 20... d5 {[%clk 0:01:18.8]}
21. Rdf1 {[%clk 0:01:12.3]} 21... b5 {[%clk 0:01:15.3]} 22. Rf6 {[%clk
0:00:46.7]} 22... b4 {[%clk 0:01:13.9]} 23. Nb1 {[%clk 0:00:46.2]} 23... Bxf6
{[%clk 0:01:09.6]} 24. gxf6 {[%clk 0:00:32.9]} 24... Kf7 {[%clk 0:00:20.6]} 25.
b3 {[%clk 0:00:34.1]} 25... Qc7 {[%clk 0:00:20.8]} 26. Nf3 {[%clk 0:00:34]}
26... Rcf8 {[%clk 0:00:17.9]} 27. Qxb4 {[%clk 0:00:33.5]} 27... Rc8 {[%clk
0:00:14]} 28. Qe7+ {[%clk 0:00:33.1]} 28... Kg8 {[%clk 0:00:14.7]} 29. f7+
{[%clk 0:00:35]} 1-0

[Event "*** MasterClass Titled Tuesday Blitz"]
[Site "Chess.com"]
[Date "2017.12.12"]
[Round "4"]
[White "gmcorrales"]
[Black "aspired"]
[Result "0-1"]
[WhiteElo "2611"]
[BlackElo "2525"]
[TimeControl "180+2"]
[EndTime "13:50:57 PST"]
[Termination "aspired won by resignation"]

1. e4 {[%clk 0:03:01.4]} 1... e5 {[%clk 0:03:00.4]} 2. Nf3 {[%clk 0:03:02.6]}
2... Nc6 {[%clk 0:03:01.7]} 3. Bb5 {[%clk 0:03:04.2]} 3... Nf6 {[%clk
0:03:02.5]} 4. O-O {[%clk 0:03:03]} 4... Nxe4 {[%clk 0:03:03.4]} 5. d4 {[%clk
0:03:04.5]} 5... Nd6 {[%clk 0:03:04.6]} 6. Bxc6 {[%clk 0:03:06.1]} 6... dxc6
{[%clk 0:03:06.5]} 7. dxe5 {[%clk 0:03:07.6]} 7... Nf5 {[%clk 0:03:08.4]} 8.
Qxd8+ {[%clk 0:03:08.8]} 8... Kxd8 {[%clk 0:03:10.3]} 9. Nc3 {[%clk 0:03:09.9]}
9... Be7 {[%clk 0:03:04.7]} 10. h3 {[%clk 0:03:10.9]} 10... h5 {[%clk
0:03:05.4]} 11. Bg5 {[%clk 0:03:08.8]} 11... Be6 {[%clk 0:02:59.9]} 12. Rad1+
{[%clk 0:03:08.3]} 12... Ke8 {[%clk 0:03:01.1]} 13. Bxe7 {[%clk 0:03:09.1]}
13... Kxe7 {[%clk 0:03:03]} 14. Ng5 {[%clk 0:03:09.9]} 14... Rad8 {[%clk
0:02:54.4]} 15. Nxe6 {[%clk 0:03:09]} 15... Kxe6 {[%clk 0:02:54.4]} 16. f4
{[%clk 0:02:54.5]} 16... Ne3 {[%clk 0:02:35.3]} 17. Rxd8 {[%clk 0:02:54.1]}
17... Rxd8 {[%clk 0:02:36.8]} 18. Rf2 {[%clk 0:02:53]} 18... Nd1 {[%clk
0:02:30.1]} 19. Nxd1 {[%clk 0:02:50.6]} 19... Rxd1+ {[%clk 0:02:32]} 20. Kh2
{[%clk 0:02:52.2]} 20... h4 {[%clk 0:02:14.8]} 21. g4 {[%clk 0:02:51.9]} 21...
hxg3+ {[%clk 0:02:15.6]} 22. Kxg3 {[%clk 0:02:52.9]} 22... Kf5 {[%clk
0:02:13.3]} 23. a3 {[%clk 0:02:36.9]} 23... c5 {[%clk 0:02:01.7]} 24. c3 {[%clk
0:02:31.6]} 24... b5 {[%clk 0:01:54.3]} 25. Kh4 {[%clk 0:02:32.4]} 25... g6
{[%clk 0:01:25.7]} 26. Kg3 {[%clk 0:02:33]} 26... c4 {[%clk 0:01:19.1]} 27. Re2
{[%clk 0:02:31.3]} 27... a6 {[%clk 0:01:07.8]} 28. e6 {[%clk 0:02:23.2]} 28...
Rd3+ {[%clk 0:01:03]} 29. Kh4 {[%clk 0:02:23.4]} 29... fxe6 {[%clk 0:01:03.5]}
30. Re5+ {[%clk 0:02:16.5]} 30... Kxf4 {[%clk 0:01:03.3]} 31. Rxe6 {[%clk
0:02:12.8]} 31... g5+ {[%clk 0:01:03]} 32. Kh5 {[%clk 0:02:14.2]} 32... Rxh3+
{[%clk 0:01:04.1]} 33. Kg6 {[%clk 0:02:15.6]} 33... g4 {[%clk 0:01:02.6]} 34.
Rf6+ {[%clk 0:02:15.1]} 34... Ke3 {[%clk 0:00:54.3]} 35. Rxa6 {[%clk 0:01:43.9]}
35... g3 {[%clk 0:00:54.9]} 36. Re6+ {[%clk 0:01:44.8]} 36... Kd2 {[%clk
0:00:47.8]} 37. Kf5 {[%clk 0:01:45.3]} 37... g2 {[%clk 0:00:41.5]} 38. Rg6
{[%clk 0:01:45.6]} 38... Rh2 {[%clk 0:00:34.2]} 39. Ke5 {[%clk 0:01:46.2]} 39...
Kc2 {[%clk 0:00:32.1]} 40. Kd4 {[%clk 0:01:42.3]} 40... Kxb2 {[%clk 0:00:32.7]}
41. Rg3 {[%clk 0:01:38.9]} 41... Kxa3 {[%clk 0:00:31.7]} 42. Kc5 {[%clk
0:01:40.3]} 42... Rh5+ {[%clk 0:00:28]} 43. Kc6 {[%clk 0:01:40.6]} 43... Kb3
{[%clk 0:00:28.9]} 44. Kxc7 {[%clk 0:01:41.2]} 44... g1=Q {[%clk 0:00:26.4]} 45.
Rxg1 {[%clk 0:01:41.1]} 45... Kxc3 {[%clk 0:00:28]} 46. Kb6 {[%clk 0:01:42.7]}
46... b4 {[%clk 0:00:28.6]} 47. Rc1+ {[%clk 0:01:43.3]} 47... Kd3 {[%clk
0:00:29.8]} 48. Rd1+ {[%clk 0:01:42.5]} 48... Kc2 {[%clk 0:00:31]} 49. Rg1
{[%clk 0:01:40.6]} 49... c3 {[%clk 0:00:30.1]} 0-1

[Event "*** MasterClass Titled Tuesday Blitz"]
[Site "Chess.com"]
[Date "2017.12.12"]
[Round "4"]
[White "AndreyOstrovskiy"]
[Black "Divertissement"]
[Result "0-1"]
[WhiteElo "2486"]
[BlackElo "2411"]
[TimeControl "180+2"]
[EndTime "13:51:03 PST"]
[Termination "Divertissement won by resignation"]

1. e4 {[%clk 0:03:01.9]} 1... c5 {[%clk 0:02:55.3]} 2. Nf3 {[%clk 0:03:02.6]}
2... Nc6 {[%clk 0:02:56.2]} 3. d4 {[%clk 0:03:03.5]} 3... cxd4 {[%clk
0:02:57.1]} 4. Nxd4 {[%clk 0:03:05.4]} 4... Qb6 {[%clk 0:02:58.2]} 5. Nb3 {[%clk
0:03:04.3]} 5... Nf6 {[%clk 0:02:59.6]} 6. Nc3 {[%clk 0:03:05]} 6... e6 {[%clk
0:03:01]} 7. Qe2 {[%clk 0:03:03.3]} 7... Bb4 {[%clk 0:02:59.6]} 8. Bd2 {[%clk
0:03:02.7]} 8... a5 {[%clk 0:02:58.8]} 9. a3 {[%clk 0:02:54.8]} 9... Bxc3 {[%clk
0:02:59.7]} 10. Bxc3 {[%clk 0:02:55.3]} 10... e5 {[%clk 0:03:00.9]} 11. O-O-O
{[%clk 0:02:43.1]} 11... O-O {[%clk 0:02:52.7]} 12. f3 {[%clk 0:02:32.4]} 12...
a4 {[%clk 0:02:11.2]} 13. Nd2 {[%clk 0:02:22.8]} 13... d5 {[%clk 0:02:12.2]} 14.
Qb5 {[%clk 0:01:22.2]} 14... Qxb5 {[%clk 0:01:48.2]} 15. Bxb5 {[%clk 0:01:24.1]}
15... d4 {[%clk 0:01:49.9]} 16. Bb4 {[%clk 0:01:25.2]} 16... Nxb4 {[%clk
0:01:47.3]} 17. axb4 {[%clk 0:01:27.1]} 17... Bd7 {[%clk 0:01:45.8]} 18. Bxd7
{[%clk 0:01:14.1]} 18... Nxd7 {[%clk 0:01:47.7]} 19. Nc4 {[%clk 0:01:03.8]}
19... Rfc8 {[%clk 0:01:31.1]} 20. Nd6 {[%clk 0:00:53.6]} 20... Rc6 {[%clk
0:01:25.7]} 21. Nf5 {[%clk 0:00:38.9]} 21... Kf8 {[%clk 0:01:18.6]} 22. Kb1
{[%clk 0:00:29.8]} 22... a3 {[%clk 0:01:15.6]} 23. bxa3 {[%clk 0:00:20.8]} 23...
Rxa3 {[%clk 0:01:11]} 24. Rd3 {[%clk 0:00:16.4]} 24... Ra8 {[%clk 0:01:05]} 25.
Rhd1 {[%clk 0:00:13.5]} 25... Rac8 {[%clk 0:01:03.2]} 26. R1d2 {[%clk
0:00:13.8]} 26... Nb6 {[%clk 0:01:03.8]} 27. Rb3 {[%clk 0:00:10.3]} 27... Na4
{[%clk 0:00:53.1]} 28. f4 {[%clk 0:00:09.1]} 28... Nc3+ {[%clk 0:00:53.2]} 29.
Kb2 {[%clk 0:00:09.3]} 29... Ra6 {[%clk 0:00:48.2]} 30. Rf2 {[%clk 0:00:09.9]}
30... Ra2+ {[%clk 0:00:44.9]} 31. Kc1 {[%clk 0:00:10.7]} 31... Ra1+ {[%clk
0:00:46.2]} 0-1

[Event "*** MasterClass Titled Tuesday Blitz"]
[Site "Chess.com"]
[Date "2017.12.12"]
[Round "4"]
[White "GMAkobianSTL"]
[Black "mazetofonias"]
[Result "1-0"]
[WhiteElo "2668"]
[BlackElo "2475"]
[TimeControl "180+2"]
[EndTime "13:51:11 PST"]
[Termination "GMAkobianSTL won by resignation"]

1. d4 {[%clk 0:03:01.9]} 1... Nf6 {[%clk 0:03:00.5]} 2. c4 {[%clk 0:03:02.3]}
2... e6 {[%clk 0:03:01.8]} 3. Nf3 {[%clk 0:03:01.7]} 3... c5 {[%clk 0:02:58.8]}
4. d5 {[%clk 0:03:02.1]} 4... d6 {[%clk 0:03:00.4]} 5. Nc3 {[%clk 0:03:02.3]}
5... exd5 {[%clk 0:03:02.3]} 6. cxd5 {[%clk 0:03:03]} 6... g6 {[%clk 0:03:03.6]}
7. Bf4 {[%clk 0:03:03.7]} 7... Bg7 {[%clk 0:03:03.9]} 8. e3 {[%clk 0:03:04.1]}
8... O-O {[%clk 0:03:04.7]} 9. h3 {[%clk 0:03:04.5]} 9... a6 {[%clk 0:03:05.6]}
10. a4 {[%clk 0:03:04.7]} 10... Re8 {[%clk 0:03:06.7]} 11. Be2 {[%clk 0:03:05]}
11... Nbd7 {[%clk 0:03:07.8]} 12. O-O {[%clk 0:03:04.9]} 12... Qc7 {[%clk
0:03:06.4]} 13. Nd2 {[%clk 0:03:02.8]} 13... Ne5 {[%clk 0:03:06.9]} 14. e4
{[%clk 0:03:03.5]} 14... Nfd7 {[%clk 0:03:06.9]} 15. Qc2 {[%clk 0:03:02.2]}
15... b6 {[%clk 0:03:05.1]} 16. b3 {[%clk 0:02:51.8]} 16... Bb7 {[%clk
0:03:05.7]} 17. Rac1 {[%clk 0:02:49.2]} 17... Rab8 {[%clk 0:02:53]} 18. Bg3
{[%clk 0:02:49.1]} 18... f6 {[%clk 0:02:36.9]} 19. f4 {[%clk 0:02:48.8]} 19...
Nf7 {[%clk 0:02:37.9]} 20. Bc4 {[%clk 0:02:44.5]} 20... Kh8 {[%clk 0:02:25.4]}
21. Qd3 {[%clk 0:02:45.1]} 21... Re7 {[%clk 0:02:23.2]} 22. Bxa6 {[%clk
0:02:44.4]} 22... Rbe8 {[%clk 0:02:22.8]} 23. Bxb7 {[%clk 0:02:43.9]} 23... Qxb7
{[%clk 0:02:24.7]} 24. Nc4 {[%clk 0:02:36.5]} 24... Qc7 {[%clk 0:02:20.5]} 25.
Nb5 {[%clk 0:02:29.7]} 25... Qb8 {[%clk 0:02:19.9]} 26. f5 {[%clk 0:02:31]}
26... Rxe4 {[%clk 0:02:09.9]} 27. Nbxd6 {[%clk 0:02:27.1]} 27... Nxd6 {[%clk
0:02:09.7]} 28. Nxd6 {[%clk 0:02:28]} 28... Re3 {[%clk 0:02:10.5]} 29. Nf7+
{[%clk 0:02:09.4]} 29... Kg8 {[%clk 0:02:10]} 30. Qxe3 {[%clk 0:02:10.4]} 30...
Rxe3 {[%clk 0:02:07.7]} 31. Bxb8 {[%clk 0:02:10.6]} 31... Kxf7 {[%clk
0:02:09.2]} 32. Bc7 {[%clk 0:02:08.8]} 32... Bh6 {[%clk 0:01:46.5]} 33. Rb1
{[%clk 0:01:51.1]} 33... Rd3 {[%clk 0:01:29.8]} 34. fxg6+ {[%clk 0:01:48.6]}
34... hxg6 {[%clk 0:01:30.1]} 35. Rfd1 {[%clk 0:01:49.4]} 35... Rc3 {[%clk
0:01:27.5]} 36. a5 {[%clk 0:01:47]} 36... bxa5 {[%clk 0:01:26.6]} 37. Bxa5
{[%clk 0:01:47.6]} 37... Rc2 {[%clk 0:01:27.8]} 38. Be1 {[%clk 0:01:34.7]} 38...
Be3+ {[%clk 0:01:27.5]} 39. Kh1 {[%clk 0:01:33.5]} 39... f5 {[%clk 0:01:28.1]}
40. Rd3 {[%clk 0:01:28]} 40... Bf4 {[%clk 0:01:26.2]} 41. b4 {[%clk 0:01:16.1]}
41... cxb4 {[%clk 0:01:26.6]} 42. Bxb4 {[%clk 0:01:15.7]} 42... Be5 {[%clk
0:01:26]} 43. Re1 {[%clk 0:01:12.3]} 43... Kf6 {[%clk 0:01:23.8]} 44. d6 {[%clk
0:01:11.4]} 44... Rc4 {[%clk 0:01:15.6]} 45. Ba3 {[%clk 0:01:10.8]} 45... Rc6
{[%clk 0:01:16.3]} 46. Rde3 {[%clk 0:01:10.7]} 46... Ke6 {[%clk 0:00:47.1]} 47.
Bb2 {[%clk 0:01:08.6]} 1-0

[Event "*** MasterClass Titled Tuesday Blitz"]
[Site "Chess.com"]
[Date "2017.12.12"]
[Round "4"]
[White "raviteja81293"]
[Black "Vrolijk"]
[Result "0-1"]
[WhiteElo "2400"]
[BlackElo "2454"]
[TimeControl "180+2"]
[EndTime "13:51:15 PST"]
[Termination "Vrolijk won by checkmate"]

1. d4 {[%clk 0:03:01.9]} 1... Nf6 {[%clk 0:03:00.3]} 2. Nf3 {[%clk 0:03:01.9]}
2... e6 {[%clk 0:03:01.8]} 3. e3 {[%clk 0:03:02.5]} 3... b6 {[%clk 0:03:02.7]}
4. Bd3 {[%clk 0:03:03.2]} 4... Bb7 {[%clk 0:03:04.2]} 5. O-O {[%clk 0:03:05.1]}
5... c5 {[%clk 0:03:04.4]} 6. c4 {[%clk 0:03:07]} 6... cxd4 {[%clk 0:03:02.1]}
7. exd4 {[%clk 0:03:08.8]} 7... Be7 {[%clk 0:03:02.3]} 8. Nc3 {[%clk 0:03:09.4]}
8... d5 {[%clk 0:03:03.9]} 9. cxd5 {[%clk 0:03:10]} 9... Nxd5 {[%clk 0:03:05.8]}
10. Ne5 {[%clk 0:03:11]} 10... O-O {[%clk 0:03:03.5]} 11. Qg4 {[%clk 0:03:11.5]}
11... Nf6 {[%clk 0:02:44.5]} 12. Qh4 {[%clk 0:03:11.8]} 12... Nbd7 {[%clk
0:02:45.6]} 13. Bg5 {[%clk 0:03:01.2]} 13... Nxe5 {[%clk 0:02:40.6]} 14. Bxf6
{[%clk 0:03:00.7]} 14... Nxd3 {[%clk 0:02:07.4]} 15. Bxe7 {[%clk 0:03:00.4]}
15... Qd7 {[%clk 0:02:07.1]} 16. Bxf8 {[%clk 0:02:59.6]} 16... Rxf8 {[%clk
0:02:09]} 17. Rab1 {[%clk 0:02:33.8]} 17... Nb4 {[%clk 0:02:07.3]} 18. a3 {[%clk
0:02:27.3]} 18... Nd5 {[%clk 0:02:07.9]} 19. Nxd5 {[%clk 0:02:14.5]} 19... Qxd5
{[%clk 0:02:09.8]} 20. f3 {[%clk 0:02:15.6]} 20... h6 {[%clk 0:02:04.9]} 21.
Rbc1 {[%clk 0:02:14.7]} 21... Bc6 {[%clk 0:01:53]} 22. Rfe1 {[%clk 0:02:03.2]}
22... a5 {[%clk 0:01:44.7]} 23. Qe4 {[%clk 0:02:01.7]} 23... Bb7 {[%clk
0:01:37]} 24. Qxd5 {[%clk 0:01:57.3]} 24... Bxd5 {[%clk 0:01:38.9]} 25. Kf2
{[%clk 0:01:57.9]} 25... f5 {[%clk 0:01:34.3]} 26. Rc7 {[%clk 0:01:55.7]} 26...
Kh7 {[%clk 0:01:34.1]} 27. g3 {[%clk 0:01:46.2]} 27... Kg6 {[%clk 0:01:30.5]}
28. f4 {[%clk 0:01:46.5]} 28... Rd8 {[%clk 0:01:28.7]} 29. Ke3 {[%clk
0:01:46.2]} 29... Kf6 {[%clk 0:01:29.2]} 30. Rg1 {[%clk 0:01:42.5]} 30... Be4
{[%clk 0:01:24.4]} 31. g4 {[%clk 0:01:38.9]} 31... g5 {[%clk 0:01:21.7]} 32.
gxf5 {[%clk 0:01:28.5]} 32... exf5 {[%clk 0:01:21]} 33. Rd1 {[%clk 0:01:22.5]}
33... Bd5 {[%clk 0:01:16.5]} 34. Kd3 {[%clk 0:01:18.6]} 34... gxf4 {[%clk
0:01:16.6]} 35. Rh7 {[%clk 0:01:15.7]} 35... Be4+ {[%clk 0:01:12.8]} 36. Ke2
{[%clk 0:01:08.5]} 36... f3+ {[%clk 0:01:13.2]} 37. Kf2 {[%clk 0:01:06.1]} 37...
Rc8 {[%clk 0:01:13]} 38. Rd2 {[%clk 0:01:03]} 38... Rg8 {[%clk 0:01:06]} 39. Kf1
{[%clk 0:00:56.9]} 39... Kg5 {[%clk 0:01:00.8]} 40. d5 {[%clk 0:00:52.2]} 40...
Kf4 {[%clk 0:01:01.3]} 41. d6 {[%clk 0:00:52.7]} 41... Ke3 {[%clk 0:01:02.3]}
42. Rd1 {[%clk 0:00:53.5]} 42... f2 {[%clk 0:00:59.7]} 43. Re7 {[%clk
0:00:45.3]} 43... Rg1# {[%clk 0:00:59.7]} 0-1

[Event "*** MasterClass Titled Tuesday Blitz"]
[Site "Chess.com"]
[Date "2017.12.12"]
[Round "4"]
[White "ChristopherYoo"]
[Black "StoreySniper"]
[Result "1-0"]
[WhiteElo "2264"]
[BlackElo "2288"]
[TimeControl "180+2"]
[EndTime "13:51:17 PST"]
[Termination "ChristopherYoo won by resignation"]

1. e4 {[%clk 0:03:01.9]} 1... g6 {[%clk 0:01:06]} 2. d4 {[%clk 0:02:59.8]} 2...
Bg7 {[%clk 0:00:59]} 3. Nc3 {[%clk 0:02:59.8]} 3... c5 {[%clk 0:00:56.1]} 4. Nf3
{[%clk 0:02:57.7]} 4... Qa5 {[%clk 0:00:09.1]} 5. Be3 {[%clk 0:02:08.3]} 5...
cxd4 {[%clk 0:00:07.6]} 6. Nxd4 {[%clk 0:01:58]} 6... Nf6 {[%clk 0:00:08.7]} 7.
Nb3 {[%clk 0:01:44.2]} 7... Qd8 {[%clk 0:00:08.4]} 8. Be2 {[%clk 0:01:43.8]}
8... Nc6 {[%clk 0:00:09.2]} 9. O-O {[%clk 0:01:44.7]} 9... d6 {[%clk 0:00:10.1]}
10. h3 {[%clk 0:01:44.1]} 10... O-O {[%clk 0:00:11.3]} 11. Qd2 {[%clk
0:01:44.7]} 11... Be6 {[%clk 0:00:12.3]} 12. Nd4 {[%clk 0:01:44]} 12... Bd7
{[%clk 0:00:12]} 13. Rfe1 {[%clk 0:01:41.2]} 13... Qc8 {[%clk 0:00:12.7]} 14.
Bf1 {[%clk 0:01:41.2]} 14... Rd8 {[%clk 0:00:13.3]} 15. f4 {[%clk 0:01:40.2]}
15... Nxd4 {[%clk 0:00:13.9]} 16. Bxd4 {[%clk 0:01:40.8]} 16... Bc6 {[%clk
0:00:15.4]} 17. Bd3 {[%clk 0:01:38.5]} 17... Qc7 {[%clk 0:00:12.8]} 18. a4
{[%clk 0:01:37.2]} 18... e5 {[%clk 0:00:13.1]} 19. Be3 {[%clk 0:01:25.4]} 19...
d5 {[%clk 0:00:12]} 20. fxe5 {[%clk 0:01:24.3]} 20... Qxe5 {[%clk 0:00:11.3]}
21. Bf4 {[%clk 0:01:17.7]} 21... Qd4+ {[%clk 0:00:11.6]} 22. Be3 {[%clk
0:01:16.3]} 22... Qb4 {[%clk 0:00:12.1]} 23. exd5 {[%clk 0:00:41.7]} 23... Nxd5
{[%clk 0:00:12.7]} 24. Nxd5 {[%clk 0:00:41.1]} 24... Qxd2 {[%clk 0:00:13.3]} 25.
Ne7+ {[%clk 0:00:42]} 25... Kf8 {[%clk 0:00:11.3]} 26. Bxd2 {[%clk 0:00:40.8]}
26... Bxb2 {[%clk 0:00:06.6]} 27. Bh6+ {[%clk 0:00:40.1]} 27... Bg7 {[%clk
0:00:02.9]} 28. Bxg7+ {[%clk 0:00:40.7]} 28... Kxg7 {[%clk 0:00:03.9]} 29. Nxc6
{[%clk 0:00:42.6]} 29... bxc6 {[%clk 0:00:05.1]} 30. Re7 {[%clk 0:00:43]} 30...
Rd4 {[%clk 0:00:05.5]} 31. Rf1 {[%clk 0:00:43.1]} 31... Rf8 {[%clk 0:00:05.1]}
32. Rxa7 {[%clk 0:00:43.9]} 32... c5 {[%clk 0:00:06.3]} 33. Bb5 {[%clk
0:00:42.2]} 33... c4 {[%clk 0:00:06.2]} 34. Rc7 {[%clk 0:00:43.1]} 1-0